[Event "12th National Amateur Chess-ch 2025"]
[Site "Bihar"]
[Date "2025.03.25"]
[Round "1.16"]
[White "Vitasta Koul"]
[Black "Aamuktha Guntaka"]
[Result "0-1"]
[Annotator "NA RC"]
[ECO "B92"]
[WhiteElo "1708"]
[BlackElo "1910"]
[PlyCount "84"]
[EventDate "2025.03.25"]
[EventCountry "IND"]
[SourceTitle "playchess.com"]
[Source "ChessBase"]
[SourceQuality "1"]
[TimeControl "5400+30"]

1. e4 {[%emt 0:00:08]} c5 {[%emt 0:00:51]} 2. Nc3 {[%emt 0:00:12]} a6 {[%emt 0:00:13]} 3. Nf3 {[%emt 0:00:53]} d6 {[%emt 0:00:21]} 4. d4 {[%emt 0:00:45]} cxd4 {[%emt 0:00:10]} 5. Nxd4 {[%emt 0:01:02]} Nf6 {[%emt 0:00:13]} 6. Be2 {[%emt 0:00:40]} e5 {[%emt 0:00:11]} 7. Nb3 {[%emt 0:00:55]} Be7 {[%emt 0:00:29]} 8. Be3 {[%emt 0:00:51]} Be6 {[%emt 0:00:45]} 9. O-O {[%emt 0:00:40]} O-O {[%emt 0:00:28]} 10. h3 {[%emt 0:08:33]} Nbd7 {[%emt 0:06:56]} 11. f4 {[%emt 0:03:06]} exf4 {[%emt 0:07:29]} 12. Bxf4 {[%emt 0:00:45]} Ne5 {[%emt 0:00:54]} 13. Qd4 {[%emt 0:11:40]} Qc7 {[%emt 0:04:49]} 14. Kh1 {[%emt 0:03:06]} Rac8 {[%emt 0:03:41]} 15. Nd2 {[%emt 0:07:33]} Rfe8 {[%emt 0:09:23]} 16. Rad1 {[%emt 0:05:46]} Nfd7 {[%emt 0:07:26]} 17. Nf3 {[%emt 0:15:04]} Nxf3 {[%emt 0:17:08]} 18. Rxf3 {[%emt 0:04:27]} Ne5 {[%emt 0:01:04]} 19. Bxe5 {[%emt 0:02:12]} dxe5 {[%emt 0:00:10]} 20. Qf2 {[%emt 0:01:50]} Bc5 {[%emt 0:00:54]} 21. Qh4 {[%emt 0:05:17]} Bd4 {[%emt 0:02:32]} 22. Rg3 {[%emt 0:03:36]} g6 {[%emt 0:11:52]} 23. Qh6 {[%emt 0:10:12]} Qe7 {[%emt 0:04:43]} 24. Qd2 {[%emt 0:04:51]} Qh4 {[%emt 0:07:10]} 25. Rd3 {[%emt 0:03:44]} Bc4 {[%emt 0:07:21]} 26. Rf3 {[%emt 0:02:08]} Bxc3 {[%emt 0:01:15]} 27. Rxc3 {[%emt 0:01:51]} Rcd8 {[%emt 0:03:33]} 28. Qe1 {[%emt 0:01:45]} Rxd1 {[%emt 0:00:19]} 29. Qxd1 {[%emt 0:00:08]} Rd8 {[%emt 0:00:27]} 30. Qf1 {[%emt 0:00:43]} Be6 {[%emt 0:00:59]} 31. Bd3 {[%emt 0:00:41]} Rd7 {[%emt 0:01:35]} 32. Kh2 {[%emt 0:00:37]} Kg7 {[%emt 0:00:21]} 33. g3 {[%emt 0:00:33]} Qg5 {[%emt 0:00:33]} 34. Qe1 {[%emt 0:00:33]} h5 {[%emt 0:00:41]} 35. Qe2 {[%emt 0:00:31]} Qc1 {[%emt 0:00:20]} 36. b3 {[%emt 0:00:22]} h4 {[%emt 0:00:39]} 37. Qf2 {[%emt 0:00:38]} hxg3+ {[%emt 0:00:08]} 38. Kxg3 {[%emt 0:00:24]} Qa1 {[%emt 0:00:44]} 39. Qd2 {[%emt 0:00:40]} Qg1+ {[%emt 0:00:20]} 40. Kh4 {[%emt 0:00:24]} f6 {[%emt 0:00:32]} 41. Rc8 {[%emt 0:00:35]} g5+ {[%emt 0:00:11]} 42. Kh5 {[%emt 0:00:04]} Bf7# {[%emt 0:00:06]} 0-1

[Event "12th National Amateur Chess-ch 2025"]
[Site "Bihar"]
[Date "2025.03.27"]
[Round "4.1"]
[White "Vidit Sethi"]
[Black "Anadkat Kartavya"]
[Result "1-0"]
[Annotator "TA"]
[ECO "E70"]
[WhiteElo "1832"]
[BlackElo "2175"]
[PlyCount "55"]
[EventDate "2025.03.25"]
[EventCountry "IND"]
[SourceTitle "playchess.com"]
[Source "ChessBase"]
[SourceQuality "1"]
[TimeControl "5400+30"]

{[%evp 22,55,20,20,33,25,25,8,-1,0,0,-2,78,64,74,68,76,64,52,83,145,83,70,63,186,234,265,256,372,299,388,360,664,593,1276,1273]} 1. d4 {[%emt 0:00:21]} g6 {[%emt 0:07:04]} 2. c4 {[%emt 0:00:00]} Bg7 {[%emt 0:00:06]} 3. Nc3 {[%emt 0:00:02]} Nf6 {[%emt 0:01:19]} 4. e4 {[%emt 0:00:15]} d6 {[%emt 0:00:07]} 5. Bd3 {[%emt 0:00:23]} Nc6 {[%emt 0:02:52]} 6. Nge2 {[%emt 0:00:07]} e5 {[%emt 0:00:13]} 7. d5 {[%emt 0:00:07]} Nd4 {[%emt 0:00:13]} 8. Nxd4 {[%emt 0:00:06]} exd4 {[%emt 0:00:11]} 9. Ne2 {[%emt 0:00:05]} O-O {[%emt 0:00:22]} 10. O-O {[%emt 0:00:18]} Re8 {[%emt 0:01:45]} 11. f3 {[%emt 0:00:06]} c5 {[%emt 0:01:21] 11...Nd7 is the fancy move.} 12. Bg5 {[%emt 0:07:22]} a6 {[%emt 0:09:15] E70: King's Indian: Miscellaneous lines with 4 e4, including 5 Nge2 and 5 Bd3 0-0 6 Nge2.} 13. Rb1 $146 {[%emt 0:05:07]} ({Predecessor:} 13. Qd2 Qc7 14. b3 Nd7 15. f4 Nf6 16. Bxf6 Bxf6 17. Kh1 b5 18. Ng1 bxc4 19. bxc4 Rb8 20. Rae1 {½-½ Yu,Y (2738)-Amin,B (2707) Danzhou 10th 2019 (6)}) 13... Qc7 {[%emt 0:10:11]} 14. h3 {[%emt 0:05:48]} Nd7 {[%emt 0:04:21] The position is equal.} 15. f4 {[%emt 0:01:05] Prevents Ne5.} b5 {[%emt 0:02:40]} 16. b3 {[%emt 0:13:09]} a5 {[%emt 0:08:55]} (16... b4 $11) 17. cxb5 $16 {[%emt 0:02:43][%csl Ob5] White has a strong passed pawn} a4 {[%emt 0:00:44]} 18. Qc2 {[%emt 0:03:00]} Nb6 {[%emt 0:03:22]} 19. f5 {[%emt 0:01:23]} axb3 {[%emt 0:02:07]} 20. axb3 {[%emt 0:00:12]} (20. Rxb3 c4 21. f6 Bh8 $11) 20... Be5 {[%emt 0:08:20] [#]} (20... gxf5 $142 21. exf5 h6) 21. fxg6 {[%emt 0:04:12]} ({White should try} 21. f6 $1) 21... fxg6 {[%emt 0:03:36]} 22. Rf3 {[%emt 0:00:26]} Bd7 {[%emt 0:03:19] A mistake that costs the game.} (22... Bg7 $1 $14) 23. Rbf1 $18 {[%emt 0:01:12]} Rf8 {[%emt 0:00:06] [#]} 24. Nf4 $1 {[%emt 0:02:07]} Rae8 {[%emt 0:04:52]} (24... Bg7 $142 25. Qf2 (25. Ne6 Bxe6 26. Rxf8+ Rxf8 $18) 25... Rae8) 25. Qf2 {[%emt 0:02:53][%cal Of4e6] Ne6! would now be deadly.} ({Resist} 25. Ne6 Bxe6 26. Rxf8+ (26. dxe6 Rxf3 27. Rxf3 Rxe6 $18) 26... Rxf8 $18) 25... Bg7 {[%emt 0:01:09]} 26. Be7 {[%emt 0:09:53]} Bxb5 $2 {[%emt 0:15:21]} ({Much weaker is} 26... Rxe7 27. Nxg6 Rxf3 28. Nxe7+ Kf7 29. Qxf3+ $18) (26... Bc8) 27. Bxf8 {[%emt 0:01:21]} Bxd3 {[%emt 0:00:02]} 28. Nxd3 {[%emt 0:00:20] Weighted Error Value: White=0.06 (flawless) /Black=0.92  Mistake:       	White=1     	Black=5      Inaccurate:     	---       	Black=1      OK:         	White=4     	Black=6      Best:        	White=5     	---        Strong:       	White=1     	---} 1-0

[Event "12th National Amateur Chess-ch 2025"]
[Site "Bihar"]
[Date "2025.03.27"]
[Round "4.2"]
[White "Pratiyush Kumar"]
[Black "Ayaan Garg"]
[Result "0-1"]
[Annotator "TA"]
[ECO "D02"]
[WhiteElo "1817"]
[BlackElo "1983"]
[PlyCount "80"]
[EventDate "2025.03.25"]
[EventCountry "IND"]
[SourceTitle "playchess.com"]
[Source "ChessBase"]
[SourceQuality "1"]
[TimeControl "5400+30"]

{[%evp 15,79,-9,-11,-18,-14,-20,-8,-16,5,-39,-29,-73,-16,-4,-3,-26,31,14,18,-66,-51,-52,-81,-117,-101,-129,-100,-194,-165,-279,-252,-291,-308,-264,-177,-222,-190,-200,-127,-148,-143,-147,-134,-160,-130,-358,-353,-362,-362,-335,-296,-307,-234,-220,-200,-219,-184,-199,-221,-214,-203,-210,-117,-371,-397,-29999]} 1. d4 {[%emt 0:01:52]} d5 {[%emt 0:00:31]} 2. Bf4 {[%emt 0:00:10]} c5 {[%emt 0:00:05]} 3. e3 {[%emt 0:00:14]} Nf6 {[%emt 0:00:04]} 4. c3 {[%emt 0:00:04]} Nc6 {[%emt 0:00:08]} 5. Nd2 {[%emt 0:00:15]} e6 {[%emt 0:00:09]} 6. Ngf3 {[%emt 0:00:16]} Bd6 {[%emt 0:00:07]} 7. Bg3 {[%emt 0:00:15]} O-O {[%emt 0:00:07]} 8. Bd3 {[%emt 0:00:13]} b6 {[%emt 0:00:04]} 9. Qe2 {[%emt 0:00:20] D02: 1 d4 d5 2 Nf3 sidelines, including 2...Nf6 3 g3 and 2...Nf6 3 Bf4.} Bb7 {[%emt 0:16:09]} 10. Rd1 {[%emt 0:00:35]} Re8 {[%emt 0:22:26] 10...Ne7 is the modern continuation.} 11. e4 {[%emt 0:02:35] [#] e5 is the strong threat. The position is equal.} Be7 {[%emt 0:02:24]} 12. e5 {[%emt 0:04:15]} Nh5 {[%emt 0:01:14]} 13. a3 {[%emt 0:04:28]} g6 {[%emt 0:02:42]} (13... c4 $17 14. Bb1 b5) 14. Nf1 $11 {[%emt 0:00:28]} cxd4 {[%emt 0:06:31]} 15. cxd4 {[%emt 0:00:57]} Rc8 $146 {[%emt 0:04:39]} (15... f6 $11) ({Predecessor:} 15... f5 16. exf6 Bxf6 17. Ne3 e5 18. dxe5 Nxg3 19. hxg3 Nxe5 20. Nxe5 Rxe5 21. O-O Qe7 {0-1 Abdyzhapar,A (1956)-Delchev,A (2543) Online Olym Div2 A rapid 2020 (4.1)}) 16. Ne3 $14 {[%emt 0:17:08]} b5 {[%emt 0:02:00]} 17. Ng4 {[%emt 0:11:24]} (17. Bxb5 $11 Qa5+ 18. Rd2) 17... Qa5+ $1 $15 {[%emt 0:00:54] Black plays on the queen side and is better} 18. Kf1 b4 {[%emt 0:01:05]} 19. Qe3 {[%emt 0:15:04]} bxa3 {[%emt 0:02:45]} (19... Nxg3+ 20. hxg3 Qa4 (20... bxa3 $2 21. Qh6 $18) 21. Ke1 bxa3 22. Qh6 Qb4+ (22... Nxd4 23. Qxh7+ Kf8 24. Qh8#) 23. Rd2 (23. Kf1 Bd8 24. Nf6+ Bxf6 25. exf6 Qe1+ 26. Rxe1 axb2 27. Qg7#)) 20. bxa3 {[%emt 0:03:58]} Qxa3 {[%emt 0:01:25]} (20... Nxg3+ 21. hxg3 Qa4 22. Nh6+ Kf8 23. Rb1 $16) 21. Qh6 {[%emt 0:19:19]} (21. Bh4 $17) 21... Qb3 {[%emt 0:02:18]} 22. Ne3 {[%emt 0:05:49]} (22. Qd2 $142 Nb4 23. Bb5) 22... Nb4 {[%emt 0:01:53]} 23. Be2 {[%emt 0:01:55]} Bf8 {[%emt 0:00:42]} 24. Qg5 {[%emt 0:00:02]} Nc2 {[%emt 0:01:06]} 25. Nd2 {[%emt 0:01:06]} Nxe3+ {[%emt 0:00:07]} 26. fxe3 {[%emt 0:00:04]} Qc3 {[%emt 0:01:13]} 27. Bxh5 {[%emt 0:00:21]} Be7 $36 {[%emt 0:01:22][%mdl 2048] Black is in control.} 28. Qf4 {[%emt 0:03:39]} gxh5 {[%emt 0:00:51]} 29. Kf2 {[%emt 0:00:24]} Qd3 {[%emt 0:05:40] Black is more active.} 30. Qf3 $2 {[%emt 0:03:16]} (30. Rhf1 $17 {was called for.}) 30... Rc2 $19 {[%emt 0:01:04]} 31. Qe2 {[%emt 0:01:34]} Qxe2+ {[%emt 0:00:14]} 32. Kxe2 {[%emt 0:00:05][%cal Bf2e2,Be2f3,Bf3f4,Bf4g5,Bg5h5][%mdl 32] White is weak on the light squares} Ba6+ {[%emt 0:00:04]} 33. Kf3 {[%emt 0:00:21]} Bb4 {[%emt 0:00:23]} 34. Ra1 {[%emt 0:01:03]} Bd3 {[%emt 0:00:07]} 35. Nb3 {[%emt 0:00:20]} Be4+ {[%emt 0:00:15] A strong pair of Bishops.} 36. Kf4 Bf8 {[%emt 0:05:47]} 37. Kg5 {[%emt 0:01:30] Prevents Bh6+.} Be7+ {[%emt 0:02:35]} 38. Kxh5 {[%emt 0:00:54]} Kg7 {[%emt 0:02:45]} ({Much less strong is} 38... Bxg2 39. Rhg1) (38... Rxg2 $19 {...Rb2 would now be deadly.} 39. Nc5 Bf3+ 40. Kh6 Kh8) 39. Nc5 $2 {[%emt 0:01:25][%mdl 8192]} (39. Bh4 $17) 39... Bxg2 {[%emt 0:02:08][%cal Rg2f3]} (39... Rxg2 $2 {too greedy.} 40. Nxe4 dxe4 41. Rxa7 $18) 40. Rhg1 $2 {[%emt 0:00:35] [#]} (40. Raf1 $19) 40... Bf3# {Weighted Error Value: White=0.61/Black=0.24 (precise)   Loses game:     	White=2     	---        Mistake:       	White=4     	Black=3      Inaccurate:     	White=3     	Black=2      OK:         	White=10    	Black=12     Best:        	White=4     	Black=2      Strong:       	---       	Black=1} 0-1

[Event "12th National Amateur Chess-ch 2025"]
[Site "Bihar"]
[Date "2025.03.27"]
[Round "4.3"]
[White "Aabhas Kumar Srivastava"]
[Black "Arhan Jain"]
[Result "0-1"]
[Annotator "TA"]
[ECO "B82"]
[WhiteElo "1756"]
[BlackElo "1914"]
[PlyCount "164"]
[EventDate "2025.03.25"]
[EventCountry "IND"]
[SourceTitle "playchess.com"]
[Source "ChessBase"]
[SourceQuality "1"]
[TimeControl "5400+30"]

{[%evp 23,164,34,17,33,16,0,104,8,24,-31,68,14,80,56,79,32,57,22,24,22,66,52,63,41,95,26,33,55,53,-10,103,96,111,8,37,28,139,139,109,94,164,152,289,67,67,67,72,68,87,75,76,81,122,116,129,0,8,0,0,0,7,0,0,-4,10,-52,-54,-200,-166,-187,-192,-181,-181,-233,-233,-236,-236,-236,-236,-237,-235,-233,-212,-226,-186,-246,-249,-281,-247,-234,-196,-225,-197,-241,-229,-229,-216,-522,-475,-522,-473,-514,-511,-506,-501,-460,-446,-749,-739,-580,-735,-681,-662,-916,-841,-840,-806,-1009,-1130,-6099,-6014,-6095,-6087,-6414,-6207,-6107,-6382,-5110,-4706,-2552,-2072,-3601,-1789,-29993,-29985,-29995,-29996,-29996,-29997,-29997,-29998,-29998,-29999]} 1. e4 c5 {[%emt 0:00:13]} 2. Nf3 {[%emt 0:00:00]} e6 {[%emt 0:00:00]} 3. d4 {[%emt 0:00:00]} cxd4 {[%emt 0:00:18]} 4. Nxd4 {[%emt 0:00:25]} a6 {[%emt 0:00:30]} 5. Nc3 {[%emt 0:00:30]} Qc7 {[%emt 0:00:30]} 6. Bd3 {[%emt 0:00:30]} Nf6 {[%emt 0:00:30]} 7. O-O {[%emt 0:00:30]} Be7 8. Qe2 {[%emt 0:01:54]} d6 {[%emt 0:00:21]} 9. Kh1 {[%emt 0:00:53]} b5 {[%emt 0:00:33]} 10. f4 {[%emt 0:03:28]} Nbd7 {[%emt 0:00:46]} 11. Bd2 {[%emt 0:00:32]} Bb7 {[%emt 0:00:25]} 12. b4 {[%emt 0:01:54]} O-O {[%emt 0:03:57]} 13. a4 {[%emt 0:08:11] B82: Sicilian Scheveningen: 6 f4.} bxa4 {[%emt 0:00:15]} 14. Rxa4 {[%emt 0:02:37][%cal Of1a1]} Qb6 {[%emt 0:05:47]} (14... Nb6 $11) 15. Nf3 $146 {[%emt 0:12:50]} (15. Nb3 $1 $16) ({Predecessor:} 15. Nb3 e5 16. Na5 Bc8 17. Nd5 Nxd5 18. exd5 Bf6 19. Qe4 g6 20. fxe5 Bxe5 21. Nc4 {1-0 Eggleston,D (2408)-Abbas,D (2281) BCF-chTb 1819 (4NCL) 2018 (6.65)}) 15... e5 {[%emt 0:02:07]} 16. Bc4 {[%emt 0:22:05]} (16. Nh4 $11) 16... Qc6 {[%emt 0:02:49]} ({Black should play} 16... exf4 $15 17. Bxf4 Bc6) 17. Ra2 {[%emt 0:22:14]} (17. Bb3 $14) 17... Rfc8 {[%emt 0:45:26]} (17... Qc7 $11) 18. Bb3 $1 $16 {[%emt 0:05:06]} Qc7 {[%emt 0:02:37]} (18... Nxe4 $2 19. Nd5 Bd8 20. Qxe4 $18) 19. Nh4 {[%emt 0:03:33]} (19. Ng5 $16 Rf8 20. Nd5 Nxd5 21. exd5) 19... exf4 {[%emt 0:03:10]} 20. Nf5 {[%emt 0:01:20]} Bf8 {[%emt 0:01:10]} 21. Rxf4 {[%emt 0:01:08]} Ne5 {[%emt 0:00:23]} 22. Qf2 {[%emt 0:05:27][%cal Of5h6]} (22. Nd5 Nxd5 23. exd5 (23. Bxd5 Bxd5 24. exd5 g6 $17) 23... g6 $11) (22. Ne3 {is more complex.} Be7 23. Ncd5 Nxd5 24. Nxd5 Bxd5 25. Bxd5 Bg5 26. Bxa8 Bxf4 27. Bxf4 Rxa8 28. Rxa6 Rb8 29. Bxe5 dxe5) 22... Kh8 {[%emt 0:05:37]} (22... Ng6 $2 23. Nh6+ gxh6 24. Rxf6 $18) 23. Ne3 {[%emt 0:02:39]} Qb6 {[%emt 0:03:34]} (23... Be7 $1 $14) 24. Ned5 {[%emt 0:02:11]} (24. Rxf6 $16 gxf6 25. Ncd5 (25. Qxf6+ Bg7 $11)) 24... Qxf2 $11 {[%emt 0:00:23]} 25. Rxf2 {[%emt 0:00:06]} Bxd5 {[%emt 0:03:28]} 26. Bxd5 {[%emt 0:01:20]} ({Better is} 26. Nxd5 $14 Nxe4 27. Re2 Nxd2 28. Rxd2) 26... Nxd5 {[%emt 0:00:06]} (26... Rab8 $11 {remains equal.}) 27. Nxd5 $16 {[%emt 0:00:26]} Nc4 {[%emt 0:02:28] Prevents Nb6.} 28. Be3 {[%emt 0:01:24]} (28. Bc3 $16) 28... Kg8 {[%emt 0:00:35]} 29. Bd4 {[%emt 0:00:29]} Rcb8 {[%emt 0:04:26] [#]} (29... a5 $1 $11) 30. c3 $1 {[%emt 0:00:56]} Rb7 {[%emt 0:00:37] Wards off Nc7} 31. Ra1 {[%emt 0:00:23]} Be7 {[%emt 0:01:06]} (31... Re8 $16) 32. Rfa2 $18 {[%emt 0:00:23]} a5 {[%emt 0:00:35]} (32... Re8 $16 33. Rxa6 Rbb8) 33. g3 $2 {[%emt 0:00:27]} (33. bxa5 $18 {Strongly threatening a6.} Bd8 34. a6) 33... Bd8 $14 {[%emt 0:00:30]} 34. Kg2 {[%emt 0:00:37]} Rb5 {[%emt 0:01:29][%cal Of7f5]} 35. g4 {[%emt 0:00:28]} f6 {[%emt 0:02:13]} 36. Kf3 {[%emt 0:00:16]} Rab8 {[%emt 0:02:01]} 37. Ke2 {[%emt 0:00:56]} axb4 {[%emt 0:01:39]} 38. cxb4 {[%emt 0:00:20]} Bb6 {[%emt 0:00:53]} 39. Kd3 {[%emt 0:00:37]} (39. Bc3 $16) 39... Bxd4 $11 {[%emt 0:01:38]} 40. Kxd4 {[%emt 0:00:06]} Nb6 {[%emt 0:00:36]} 41. Ne7+ {[%emt 0:00:53]} Kf8 $1 {[%emt 0:00:22]} 42. Nc6 {[%emt 0:00:30]} Rc8 $36 {[%emt 0:00:11][%mdl 2048] Black is more active.} 43. Rc2 {[%emt 0:00:17]} Nd7 {[%emt 0:00:53]} 44. Rac1 {[%emt 0:00:39]} (44. Ra5 $11 Rb7 45. Kd5) 44... Ne5 $15 {[%emt 0:00:24]} 45. Na7 {[%emt 0:00:52]} (45. Nxe5 $15 dxe5+ (45... fxe5+ $2 46. Ke3 $17) 46. Ke3 Rxc2 47. Rxc2 Rxb4 48. h4) 45... Rxb4+ $19 {[%emt 0:01:08]} 46. Kd5 {[%emt 0:00:05]} Rxc2 {[%emt 0:00:47]} 47. Rxc2 {[%emt 0:00:03]} Nxg4 {[%emt 0:01:21]} 48. Kxd6 {[%emt 0:01:07][%mdl 4096] Endgame KRN-KRN. Black is a pawn up.} (48. Rc3 {was necessary.}) 48... Rd4+ {[%emt 0:01:41]} ({But not} 48... Rxe4 49. Nc6 $19) 49. Ke6 {[%emt 0:00:37] White wants to mate with Rc8+.} Rxe4+ {[%emt 0:00:21]} 50. Kf5 {[%emt 0:00:44]} Ne3+ {[%emt 0:00:18]} 51. Kxe4 {[%emt 0:00:04]} Nxc2 {[%emt 0:00:02] KN-KN. Black is two pawns up.} 52. Nc6 {[%emt 0:00:31]} Na3 {[%emt 0:00:25]} 53. Nd4 {[%emt 0:00:22]} Nc4 {[%emt 0:00:37]} 54. h4 {[%emt 0:00:26]} (54. Kd5 $142 Ne3+ 55. Ke4) 54... Kf7 {[%emt 0:00:16]} 55. Kf4 {[%emt 0:00:22]} Kg6 {[%emt 0:00:42]} 56. Nf5 {[%emt 0:00:11]} Ne5 {[%emt 0:01:04]} 57. h5+ {[%emt 0:00:30] [#]} Kf7 $1 {[%emt 0:00:05]} 58. Nd4 {[%emt 0:00:27]} Nc4 {[%emt 0:00:51]} 59. Nc6 {[%emt 0:00:27]} g5+ {[%emt 0:01:05]} 60. Kf5 $2 {[%emt 0:01:20]} (60. hxg6+ hxg6 61. Nd8+ Ke7 62. Nc6+ Kd6 63. Nd4) 60... Nd6+ {[%emt 0:00:19]} 61. Kg4 {[%emt 0:00:16]} Kg7 {[%emt 0:00:28]} 62. Ne7 {[%emt 0:00:21]} h6 {[%emt 0:01:09]} 63. Nc6 {[%emt 0:00:31]} f5+ {[%emt 0:00:05]} 64. Kf3 {[%emt 0:00:09]} Kf6 {[%emt 0:00:24]} 65. Nd8 {[%emt 0:00:11]} (65. Nb4 $142) 65... Ne8 {[%emt 0:00:21]} 66. Nc6 {[%emt 0:00:18]} Ng7 {[%emt 0:00:06]} 67. Nd4 {[%emt 0:00:05]} Nxh5 {[%emt 0:00:06]} 68. Ne2 {[%emt 0:00:05]} g4+ {[%emt 0:00:06]} 69. Kg2 {[%emt 0:00:06]} Kg5 {[%emt 0:00:03]} 70. Nd4 {[%emt 0:00:07]} Nf4+ {[%emt 0:00:12]} 71. Kg3 {[%emt 0:00:09]} h5 {[%emt 0:00:18]} 72. Nc6 {[%emt 0:00:05]} h4+ {[%emt 0:00:04]} 73. Kh2 {[%emt 0:00:05]} g3+ {[%emt 0:00:03]} 74. Kg1 {[%emt 0:00:19]} Kg4 {[%emt 0:00:20]} 75. Ne5+ {[%emt 0:00:06]} Kh3 {[%emt 0:00:08]} 76. Nf3 {[%emt 0:00:29]} Ne6 {[%emt 0:00:38]} 77. Kh1 {[%emt 0:00:14]} f4 {[%emt 0:00:21] ...Kg4 is the strong threat.} 78. Ne5 {[%emt 0:00:14]} Nd4 {[%emt 0:00:17] Black mates.} 79. Nf3 {[%emt 0:00:26]} g2+ {[%emt 0:00:06]} 80. Kg1 {[%emt 0:00:05]} Nxf3+ {[%emt 0:00:02]} 81. Kf2 {[%emt 0:00:08]} g1=Q+ {[%emt 0:00:05]} 82. Ke2 {[%emt 0:00:09]} Qe3+ {[%emt 0:00:05] Quite a comeback for Black.   Weighted Error Value: White=0.44/Black=0.28 (precise)   Missed win:     	White=1     	---        Mistake:       	White=14    	Black=8      Inaccurate:     	White=1     	Black=3      OK:         	White=10    	Black=24     Best:        	White=3     	Black=4      Strong:       	White=1     	Black=1} 0-1